bitfinex/quotes_SOLUSD_20240729
["timestamp","ask_amount","ask_price","bid_price","bid_amount"]
[1722292639237,5.4174,184.59,184.54,13.5471]
[1722292639441,20.0,184.58,184.54,13.5471]
[1722292641146,20.0,184.58,184.52,5.4194]
[1722292641548,25.4177,184.58,184.52,5.4194]
[1722292643575,20.0,184.58,184.53,5.4191]
[1722292643945,20.0,184.58,184.54,5.4186]
[1722292644151,20.0,184.6,184.54,13.5471]
[1722292644760,20.0,184.6,184.56,5.4182]
[1722292644959,5.4164,184.63,184.57,5.4179]
[1722292645561,5.4164,184.63,184.58,1.08338102]
[1722292646057,0.94077357,184.66,184.58,6.50098102]
[1722292646268,0.94077357,184.66,184.58,5.4176]
[1722292647077,6.35637357,184.66,184.59,6.5006007]
[1722292647248,0.94077357,184.66,184.59,5.4173]
[1722292647454,0.94077357,184.66,184.6,1.0832157]
[1722292647651,5.4157,184.65,184.61,1.08321599]
[1722292648574,0.94077357,184.66,184.6,13.5426]
[1722292648779,0.94077357,184.66,184.62,5.4165]
[1722292649575,0.94077357,184.66,184.61,5.4167]
[1722292650757,5.4156,184.65,184.6,13.5426]
[1722292650978,1.0854534,184.65,184.58,6.1459]
[1722292651179,5.4162,184.64,184.58,6.1459]
[1722292651370,0.94077357,184.66,184.58,6.1459]
[1722292651559,14.47917357,184.66,184.58,6.1459]
[1722292651767,5.4166,184.62,184.58,6.1459]
[1722292652180,45.45,184.65,184.58,6.1459]
[1722292652181,5.4161,184.64,184.58,6.1459]
[1722292652380,1.0854534,184.64,184.58,6.1459]
[1722292652883,5.4162,184.63,184.58,6.1459]
[1722292653685,25.4159,184.65,184.58,6.1459]
[1722292654776,0.94074519,184.64,184.59,5.4172]
[1722292656366,0.94074519,184.64,184.58,7.22911854]
[1722292656573,20.0,184.69,184.59,45.0]
[1722292656879,0.94063542,184.67,184.59,45.0]
[1722292657585,0.94063542,184.67,184.61,5.4167]
[1722292657586,6.35563542,184.67,184.61,5.4167]
[1722292657761,20.0,184.66,184.61,5.4167]
[1722292658373,6.35563542,184.67,184.61,5.4167]
[1722292658869,5.4153,184.66,184.61,5.4167]
[1722292662674,5.4153,184.66,184.62,1.08306328]
[1722292663690,0.94063542,184.67,184.62,14.62396328]
[1722292663900,20.0,184.7,184.63,15.5348]
[1722292664483,5.415,184.68,184.63,15.5348]
[1722292664687,5.4144,184.69,184.64,1.08299989]
[1722292664884,5.4144,184.69,184.63,20.9509]
[1722292665086,5.4147,184.68,184.63,15.5348]
[1722292666970,5.4145,184.69,184.63,20.9509]
[1722292669076,0.94040255,184.71,184.63,15.5348]
[1722292669285,5.4151,184.67,184.61,5.4167]
[1722292669505,12.7,184.65,184.61,5.4167]
[1722292671404,12.7,184.63,184.59,15.5348]
[1722292671584,12.7,184.63,184.59,20.9521]
[1722292671778,12.7,184.62,184.59,20.9521]
[1722292672708,12.7,184.63,184.59,20.9521]
[1722292674385,12.7,184.63,184.59,15.5348]
[1722292674610,12.7,184.61,184.59,15.5348]
[1722292675801,12.7,184.61,184.58,6.1459]
[1722292676120,12.7,184.59,184.54,6.0182]
[1722292676406,12.7,184.55,184.51,5.4194]
[1722292677180,12.7,184.54,184.5,21.553]
[1722292678498,12.7,184.52,184.5,21.553]
[1722292678705,6.5040534,184.55,184.5,21.553]
[1722292678706,12.7,184.53,184.5,21.553]
[1722292679287,5.4186,184.55,184.5,21.553]
[1722292681994,5.4189,184.54,184.5,21.553]
[1722292682987,5.4191,184.53,184.5,21.553]
[1722292683411,5.4185,184.55,184.5,21.553]
[1722292683897,20.0,184.54,184.5,21.553]
[1722292686809,41.832,184.67,184.51,45.0]
[1722292687008,26.37101141,184.65,184.56,5.4182]
[1722292687211,26.37101141,184.65,184.57,1.08343212]
[1722292687506,5.416,184.64,184.57,6.50123212]
[1722292687895,5.4163,184.63,184.57,6.50123212]
[1722292688090,5.4163,184.63,184.58,1.08338999]
[1722292688611,5.4165,184.62,184.58,1.08338999]
[1722292689211,5.4165,184.62,184.57,1.08334797]
[1722292689526,5.4165,184.62,184.58,1.0833606]
[1722292689903,3.13728334,184.67,184.59,5.4171]
[1722292690097,5.4156,184.65,184.58,21.743]
[1722292690823,5.4157,184.65,184.59,5.4173]
[1722292691036,5.4152,184.67,184.6,6.50017633]
[1722292691211,5.4152,184.67,184.61,1.08315239]
[1722292691412,5.4155,184.66,184.61,1.08315239]
[1722292691610,20.0,184.65,184.59,18.9608]
[1722292692003,25.4156,184.65,184.59,18.9608]
[1722292692204,5.4159,184.64,184.59,13.5434]
[1722292692532,5.4164,184.63,184.58,21.743]
[1722292694233,5.4159,184.64,184.58,27.1606]
[1722292694929,20.0,184.65,184.6,5.417]
[1722292695424,20.0,184.66,184.61,1.08316018]
[1722292695735,25.4154,184.66,184.61,1.08316018]
[1722292696401,25.4154,184.66,184.6,5.417]
[1722292696597,25.4154,184.66,184.61,1.08314871]
[1722292697527,5.4157,184.65,184.61,1.08314871]
[1722292697723,5.4157,184.65,184.59,6.50044799]
[1722292699209,12.7,184.64,184.59,6.50044799]
[1722292699932,18.1159,184.64,184.59,1.08314799]
[1722292700117,18.1159,184.64,184.58,27.1606]
[1722292700316,12.7,184.63,184.58,27.1606]
[1722292701338,12.7,184.62,184.58,27.1606]
[1722292701631,12.7,184.6,184.58,21.743]
[1722292702517,12.7,184.61,184.58,21.743]
[1722292702829,12.7,184.62,184.59,1.0833419]
[1722292703216,12.7,184.63,184.6,5.4169]
[1722292703417,12.7,184.64,184.61,1.08318931]
[1722292703621,12.7,184.64,184.6,5.4169]
[1722292704722,12.7,184.63,184.58,35.2871]
[1722292706136,12.7,184.62,184.58,21.743]
[1722292706637,12.7,184.61,184.58,21.743]
[1722292708229,12.7,184.61,184.58,27.1606]
[1722292708427,20.0,184.66,184.58,21.743]
[1722292708428,12.7,184.6,184.58,21.743]
[1722292708731,12.7,184.59,184.58,21.743]
[1722292708926,12.7,184.59,184.55,18.9646]
[1722292709129,12.7,184.57,184.55,13.5463]
[1722292709528,12.7,184.59,184.55,13.5463]
[1722292710730,12.7,184.59,184.56,5.4182]
[1722292711132,13.6411553,184.61,184.57,5.4179]
[1722292712020,13.6411553,184.61,184.56,6.50159445]
[1722292712234,13.6411553,184.61,184.55,13.5463]
[1722292713439,13.6411553,184.61,184.56,1.08339479]
[1722292713633,13.6411553,184.61,184.57,5.4179]
[1722292713944,13.6411553,184.61,184.56,6.50159479]
[1722292714151,13.6411553,184.61,184.58,1.08339491]
[1722292715255,13.6411553,184.61,184.57,1.08339507]
[1722292716156,13.6411553,184.61,184.58,1.08339512]
[1722292716654,0.9411553,184.61,184.55,26.2463]
[1722292716831,5.4155,184.66,184.57,12.7]
[1722292717028,12.7,184.64,184.57,13.78313157]
[1722292717236,12.7,184.64,184.58,45.0]
[1722292717551,12.7,184.64,184.58,58.5437]
[1722292717948,12.7,184.63,184.58,58.5437]
[1722292718148,12.7,184.63,184.59,5.4173]
[1722292718531,12.7,184.64,184.61,5.4168]
[1722292718740,12.7,184.64,184.58,58.5437]
[1722292719145,12.7,184.64,184.6,5.417]
[1722292720729,5.4156,184.65,184.59,5.4174]
[1722292721075,12.7,184.61,184.56,5.418]
[1722292721355,12.7,184.61,184.57,5.4179]
[1722292722056,12.7,184.61,184.56,5.4182]
[1722292722469,12.7,184.59,184.55,5.4185]
[1722292722759,12.7,184.58,184.55,5.4185]
[1722292722931,14.47936898,184.66,184.54,21.5146]
[1722292722932,12.7,184.56,184.54,21.5146]
[1722292723134,12.7,184.55,184.54,21.5146]
[1722292723354,12.7,184.57,184.54,26.9333]
[1722292723528,12.7,184.58,184.54,26.9333]
[1722292726035,12.7,184.58,184.54,21.5146]
[1722292727958,12.7,184.59,184.55,1.08354753]
[1722292728463,12.7,184.6,184.55,1.08354753]
[1722292729166,12.7,184.6,184.55,6.50204753]
[1722292731552,18.1171,184.6,184.55,6.50204753]
[1722292731755,18.1171,184.6,184.55,1.08354753]
[1722292731943,18.1171,184.6,184.54,26.9334]
[1722292731944,5.4174,184.59,184.54,26.9334]
[1722292732144,12.7,184.57,184.54,21.5146]
[1722292734659,12.7,184.55,184.54,21.5146]
[1722292735053,12.7,184.55,184.5,20.9292]
[1722292735262,12.7,184.53,184.5,15.5094]
[1722292735563,12.7,184.53,184.5,20.9293]
[1722292735754,12.7,184.53,184.5,15.5094]
[1722292736565,12.7,184.52,184.5,15.5094]
[1722292738777,12.7,184.51,184.49,6.2796]
[1722292738954,12.7,184.5,184.46,15.6419]
[1722292739271,0.94133109,184.55,184.46,15.6419]
[1722292739272,12.7,184.48,184.46,15.6419]
[1722292739766,12.7,184.49,184.46,15.6419]
[1722292739962,0.94133109,184.55,184.46,15.6419]
[1722292739963,12.7,184.47,184.46,15.6419]
[1722292740163,12.7,184.47,184.44,6.3292]
[1722292740369,12.7,184.45,184.44,6.3292]
[1722292740981,12.7,184.45,184.41,34.828]
[1722292741281,12.7,184.44,184.41,34.828]
[1722292741451,12.7,184.43,184.41,34.828]
[1722292741654,12.7,184.42,184.41,15.8493]
[1722292742675,12.7,184.42,184.39,6.1896]
[1722292742970,12.7,184.41,184.39,11.6128]
[1722292743170,12.7,184.42,184.39,6.1896]
[1722292743375,12.7,184.4,184.39,6.1896]
[1722292743556,12.7,184.4,184.37,13.5591]
[1722292744798,12.7,184.4,184.37,18.9829]
[1722292745476,12.7,184.42,184.39,5.423]
[1722292745663,12.7,184.43,184.39,5.423]
[1722292745856,12.7,184.43,184.4,5.4229]
[1722292746053,12.7,184.43,184.39,5.4232]
[1722292748597,12.7,184.42,184.37,18.9826]
[1722292748796,12.7,184.4,184.36,21.2734]
[1722292749402,12.7,184.4,184.36,15.8493]
[1722292749705,12.7,184.39,184.35,19.7323]
[1722292750082,12.7,184.38,184.35,19.7323]
[1722292750904,12.7,184.4,184.35,19.7323]
[1722292751081,12.7,184.4,184.35,25.1565]
[1722292751271,12.7,184.39,184.35,25.1565]
[1722292751483,12.7,184.39,184.35,6.1719]
[1722292751484,12.7,184.38,184.35,6.1719]
[1722292751686,12.7,184.37,184.35,6.1719]
[1722292754597,12.7,184.36,184.33,5.425]
[1722292756113,12.7,184.36,184.34,5.4247]
[1722292757411,5.6517016,184.46,184.38,13.5587]
[1722292757592,5.4221,184.43,184.38,13.5587]
[1722292757788,12.7,184.4,184.38,13.5587]
[1722292758288,20.0,184.42,184.38,13.5587]
[1722292758519,12.7,184.4,184.37,5.4235]
[1722292758696,12.7,184.4,184.36,5.4241]
[1722292758896,5.4227,184.41,184.35,5.4244]
[1722292758897,12.7,184.39,184.35,5.4244]
[1722292760330,5.4227,184.41,184.35,5.4244]
[1722292760632,12.7,184.39,184.35,5.4244]
[1722292761131,0.94182806,184.44,184.42,5.4221]
[1722292761425,12.7,184.46,184.43,1.08427322]
[1722292761604,12.7,184.45,184.41,5.4224]
[1722292761806,12.7,184.45,184.4,18.9802]
[1722292762001,12.7,184.45,184.4,13.5573]
[1722292762305,18.1216,184.45,184.4,13.5573]
[1722292762719,12.7,184.43,184.4,18.9802]
[1722292763517,12.7,184.42,184.39,20.581]
[1722292763730,12.7,184.42,184.39,20.5811]
[1722292768527,12.7,184.43,184.39,20.5811]
[1722292768730,12.7,184.43,184.4,5.4229]
[1722292769640,5.4208,184.48,184.42,5.4224]
[1722292769836,12.7,184.45,184.43,5.422]
[1722292770138,12.7,184.48,184.44,5.4216]
[1722292770640,12.7,184.47,184.43,18.977]
[1722292770844,12.7,184.46,184.43,18.977]
[1722292771023,12.7,184.46,184.43,13.555]
[1722292773939,12.7,184.46,184.43,18.977]
[1722292774140,12.7,184.47,184.43,20.0612463]
[1722292774333,12.7,184.48,184.44,5.4217]
[1722292775349,12.7,184.48,184.43,20.0612463]
[1722292776345,18.1207,184.48,184.43,18.977]
[1722292777855,12.7,184.47,184.43,13.555]
[1722292778057,12.7,184.5,184.42,6.4379]
[1722292778226,12.7,184.44,184.42,6.4379]
[1722292778542,12.7,184.43,184.42,6.4379]
[1722292779129,21.0854534,184.49,184.42,6.4379]
[1722292779130,12.7,184.45,184.42,6.4379]
[1722292779347,12.7,184.45,184.42,11.8602]
[1722292780038,12.7,184.46,184.42,11.8602]
[1722292781330,12.7,184.45,184.42,6.4379]
[1722292781527,12.7,184.44,184.42,6.4379]
[1722292786528,12.7,184.44,184.4,5.4229]
[1722292786832,12.7,184.43,184.4,5.4229]
[1722292788048,12.7,184.43,184.39,28.7154]
[1722292789033,12.7,184.43,184.4,5.4227]
[1722292789427,12.7,184.43,184.41,5.4226]
[1722292789654,12.7,184.43,184.4,5.4229]
[1722292789826,12.7,184.42,184.39,28.7154]
[1722292790646,12.7,184.42,184.39,34.1386]
[1722292791835,5.4212,184.46,184.4,5.4229]
[1722292792030,12.7,184.43,184.41,5.4225]
[1722292792550,5.4211,184.47,184.41,5.4225]
[1722292792750,12.7,184.43,184.41,5.4225]
[1722292794753,12.7,184.44,184.41,5.4225]
[1722292797766,12.7,184.44,184.4,5.4229]
[1722292798653,12.7,184.44,184.4,6.50734558]
[1722292798960,12.7,184.45,184.4,6.50734558]
[1722292801738,12.7,184.45,184.4,5.4229]
[1722292802659,12.7,184.45,184.4,6.50729273]
[1722292803542,12.7,184.45,184.41,5.4226]
[1722292803741,12.7,184.44,184.39,15.1579]
[1722292803954,12.7,184.44,184.39,28.716]
[1722292804658,5.4221,184.43,184.39,15.1579]
[1722292804837,12.7,184.44,184.39,15.1579]
[1722292805042,12.7,184.42,184.39,15.1579]
[1722292806241,12.7,184.42,184.39,20.581]
[1722292806842,12.7,184.42,184.4,5.4229]
[1722292807147,12.7,184.42,184.39,20.5811]
[1722292808566,0.94093792,184.46,184.4,1.08446639]
[1722292808769,12.7,184.44,184.4,1.08446639]
[1722292809066,12.7,184.44,184.41,5.4226]
[1722292809953,12.7,184.44,184.4,5.4229]
[1722292810554,12.7,184.42,184.39,15.1579]
[1722292811467,12.7,184.4,184.39,15.1579]
[1722292811658,12.7,184.4,184.38,20.0153]
[1722292812272,12.7,184.4,184.38,25.4388]
[1722292812881,12.7,184.39,184.38,6.457]
[1722292813176,12.7,184.4,184.38,6.457]
[1722292813674,20.94093792,184.46,184.44,5.4217]
[1722292813871,13.64093792,184.46,184.39,12.7]
[1722292814071,13.64093792,184.46,184.42,13.5552]
[1722292814373,12.7,184.45,184.42,13.5552]
[1722292814755,13.64093792,184.46,184.42,13.5552]
[1722292814957,13.64093792,184.46,184.42,18.9775]
[1722292815157,0.94093792,184.46,184.43,6.5063927]
[1722292815356,12.7,184.47,184.43,6.5063927]
[1722292815580,12.7,184.47,184.43,5.4221]
[1722292815872,13.64088297,184.48,184.44,5.4217]
[1722292816074,5.42,184.5,184.46,5.4211]
[1722292816075,12.7,184.5,184.46,5.4211]
[1722292816265,12.7,184.53,184.48,13.5512]
[1722292816468,12.7,184.53,184.49,1.08393842]
[1722292816772,12.7,184.52,184.48,13.5512]
[1722292816978,12.7,184.49,184.45,6.4804]
[1722292817366,12.7,184.48,184.45,6.4804]
[1722292817887,12.7,184.46,184.41,16.1269]
[1722292818066,12.7,184.46,184.42,5.4221]
[1722292818267,12.7,184.45,184.42,5.4221]
[1722292818464,12.7,184.45,184.41,22.5526]
[1722292819185,12.7,184.44,184.41,22.5526]
[1722292819478,12.7,184.43,184.41,22.5526]
[1722292819678,12.7,184.45,184.41,23.63703107]
[1722292819992,18.1209,184.48,184.42,5.4221]
[1722292820285,13.5461,184.56,184.44,12.7]
[1722292820465,13.5461,184.56,184.46,5.4212]
[1722292820466,12.7,184.51,184.46,5.4212]
[1722292820666,12.7,184.51,184.47,1.08406387]
[1722292820988,12.7,184.5,184.45,13.5536]
[1722292821558,12.7,184.5,184.45,18.9751]
[1722292822266,12.7,184.48,184.45,13.5536]
[1722292822474,12.7,184.46,184.41,36.1088]
[1722292823082,12.7,184.45,184.41,36.1088]
[1722292823788,12.7,184.47,184.41,36.1088]
[1722292824162,12.7,184.47,184.42,5.4221]
[1722292824368,12.7,184.47,184.41,36.1088]
[1722292825068,5.4202,184.5,184.43,13.5546]
[1722292825281,32.7,184.49,184.44,1.08414445]
[1722292825483,12.7,184.48,184.43,18.9764]
[1722292825886,12.7,184.47,184.43,13.5546]
[1722292826088,5.4207,184.48,184.43,13.5546]
[1722292826089,18.1207,184.48,184.43,13.5546]
[1722292826286,12.7,184.48,184.43,18.9766]
[1722292826686,32.7,184.49,184.44,5.4217]
[1722292827166,20.0,184.49,184.44,5.4217]
[1722292827362,32.7,184.49,184.44,5.4217]
[1722292827768,38.1203,184.49,184.44,5.4217]
[1722292829786,32.7,184.49,184.44,5.4217]
[1722292830382,32.7,184.49,184.45,1.08414591]
[1722292830581,38.1203,184.49,184.45,1.08414591]
[1722292831105,38.1203,184.49,184.44,5.4217]
[1722292831401,38.1203,184.49,184.43,18.9766]
[1722292831596,5.4206,184.48,184.43,18.9766]
[1722292834399,5.4206,184.48,184.44,1.08416285]
[1722292834782,5.4206,184.48,184.43,18.9766]
[1722292835483,5.4206,184.48,184.43,13.5546]
[1722292836803,18.1206,184.48,184.43,13.5546]
[1722292837103,12.7,184.46,184.41,22.5526]
[1722292837306,18.1215,184.45,184.41,22.5526]
[1722292837687,21.0854534,184.49,184.41,22.5526]
[1722292837688,18.1218,184.44,184.41,22.5526]
[1722292838625,12.7,184.42,184.41,6.4257]
[1722292839207,12.7,184.42,184.38,5.4235]
[1722292839401,12.7,184.41,184.38,5.4235]
[1722292839901,12.7,184.43,184.38,5.4235]
[1722292840801,12.7,184.43,184.37,22.6475]
[1722292841006,12.7,184.43,184.39,14.64261434]
[1722292841299,12.7,184.43,184.4,1.08444853]
[1722292841702,12.7,184.43,184.39,13.5581]
[1722292841884,12.7,184.42,184.39,13.5581]
[1722292842979,18.1221,184.43,184.39,13.5581]
[1722292843906,12.7,184.42,184.39,13.5581]
[1722292846385,12.7,184.42,184.39,18.9813]
[1722292846585,12.7,184.46,184.41,5.4224]
[1722292846786,12.7,184.48,184.42,14.64012325]
[1722292847011,12.7,184.49,184.44,5.4218]
[1722292847413,12.7,184.49,184.44,21.957]
[1722292847589,12.7,184.48,184.44,21.957]
[1722292847790,12.7,184.48,184.44,23.04116943]
[1722292848491,19.05954493,184.5,184.45,5.4214]
[1722292848693,20.0,184.49,184.46,1.08409166]
[1722292848889,20.0,184.49,184.46,6.50529166]
[1722292849296,20.0,184.49,184.46,1.08409166]
[1722292851002,12.7,184.5,184.46,1.08409166]
[1722292851316,12.7,184.51,184.46,1.08409166]
[1722292851508,0.93950515,184.53,184.47,14.63624376]
[1722292851719,18.1187,184.55,184.49,5.42]
[1722292852009,18.1187,184.55,184.5,1.08381103]
[1722292852214,12.7,184.54,184.5,1.08381103]
[1722292852604,18.1189,184.54,184.48,6.2822]
[1722292852804,12.7,184.53,184.48,11.7028]
[1722292854111,18.1189,184.54,184.48,11.7028]
[1722292854497,12.7,184.55,184.51,5.4194]
[1722292854715,12.7,184.58,184.53,13.5477]
[1722292855720,12.7,184.58,184.54,5.4188]
[1722292855917,18.1174,184.6,184.55,1.08354598]
[1722292856123,0.93905894,184.61,184.55,1.08354598]
[1722292856124,0.93905894,184.61,184.57,20.6409]
[1722292856308,12.7,184.62,184.57,20.6409]
[1722292856904,12.7,184.6,184.57,15.223]
[1722292859428,12.7,184.6,184.57,20.6409]
[1722292859829,12.7,184.61,184.57,20.6409]
[1722292860419,12.7,184.61,184.58,1.08338502]
[1722292860626,12.7,184.61,184.57,20.6409]
[1722292860928,12.7,184.6,184.57,20.6409]
[1722292864128,12.7,184.61,184.57,20.6409]
[1722292865332,12.7,184.62,184.57,20.6409]
[1722292867522,18.1165,184.62,184.57,20.6409]
[1722292868335,12.7,184.62,184.57,20.6409]
[1722292872116,12.7,184.61,184.57,20.6409]
[1722292872315,12.7,184.61,184.57,15.223]
[1722292874240,18.1166,184.62,184.57,15.223]
[1722292874417,18.1166,184.62,184.57,20.6409]
[1722292875219,12.7,184.64,184.6,5.417]
[1722292875434,12.7,184.64,184.61,1.08319355]
[1722292876333,12.7,184.65,184.61,6.49989355]
[1722292876536,12.7,184.64,184.6,5.4171]
[1722292877139,12.7,184.63,184.6,5.4171]
[1722292877442,12.7,184.62,184.6,5.4171]
[1722292878817,12.7,184.63,184.6,5.4171]
[1722292879649,12.7,184.62,184.59,5.4173]
[1722292880029,12.7,184.62,184.6,5.417]
[1722292880820,12.7,184.62,184.61,5.4168]
[1722292881025,12.7,184.63,184.61,5.4168]
[1722292881851,12.7,184.64,184.63,5.4162]
[1722292885244,5.4148,184.68,184.63,5.4162]
[1722292885432,12.7,184.66,184.63,5.4162]
[1722292887747,5.4148,184.68,184.63,5.4162]
[1722292888051,12.7,184.66,184.63,5.4162]
[1722292889855,12.7,184.66,184.62,5.4164]
[1722292890150,12.7,184.66,184.63,5.4161]
[1722292890954,12.7,184.67,184.63,5.4161]
[1722292892156,12.7,184.66,184.62,5.4164]
[1722292892655,12.7,184.69,184.66,5.4153]
[1722292892833,12.7,184.7,184.66,5.4153]
[1722292893854,12.7,184.7,184.67,5.415]
[1722292894360,12.7,184.7,184.68,5.4146]
[1722292895752,12.7,184.69,184.66,5.4152]
[1722292895928,12.7,184.68,184.66,5.4152]
[1722292899269,12.7,184.68,184.67,5.415]
[1722292899445,12.7,184.69,184.67,5.415]
[1722292901839,12.7,184.7,184.67,5.415]
[1722292904641,12.7,184.69,184.67,5.415]
[1722292905231,12.7,184.69,184.66,5.4153]
[1722292905535,12.7,184.69,184.68,5.4147]
[1722292905934,12.7,184.7,184.68,5.4147]
[1722292910844,12.7,184.69,184.65,13.5384]
[1722292911651,12.7,184.69,184.67,5.415]
[1722292913146,12.7,184.68,184.67,5.415]
[1722292913841,7.2622851,184.73,184.67,5.415]
[1722292913842,0.7635317,184.73,184.67,5.415]
[1722292914047,12.7,184.71,184.68,13.5368]
[1722292914248,12.7,184.7,184.68,13.5368]
[1722292914451,12.7,184.71,184.7,5.4141]
[1722292914651,0.7635317,184.73,184.71,5.4138]
[1722292914652,13.4635317,184.73,184.71,5.4138]
[1722292914861,0.7635317,184.73,184.72,5.4135]
[1722292916249,13.4635317,184.73,184.7,13.5347]
[1722292916449,12.7,184.71,184.7,13.5347]
[1722292917773,12.7,184.71,184.7,18.9488]
[1722292918369,12.7,184.71,184.7,13.5347]
[1722292921573,12.7,184.71,184.7,18.9488]
[1722292922157,13.4635317,184.73,184.7,18.9488]
[1722292922477,0.7635317,184.73,184.71,1.08266951]
[1722292922976,0.7635317,184.73,184.7,13.5347]
[1722292923284,0.7635317,184.73,184.71,5.4138]
[1722292923771,13.4635317,184.73,184.71,5.4138]
[1722292924167,13.4635317,184.73,184.69,15.1114]
[1722292924369,12.7,184.72,184.69,15.1114]
[1722292929082,13.4635317,184.73,184.69,15.1114]
[1722292929387,0.7635317,184.73,184.7,1.08263481]
[1722292929677,0.7635317,184.73,184.71,1.08260705]
[1722292929856,13.4635317,184.73,184.71,1.08260705]
[1722292930055,13.4635317,184.73,184.7,5.4139]
[1722292930466,13.4635317,184.73,184.7,6.4965236]
[1722292930870,0.7635317,184.73,184.69,15.1114]
[1722292931068,13.4635317,184.73,184.71,5.4138]
[1722292931276,13.4635317,184.73,184.7,5.4141]
[1722292932459,13.4635317,184.73,184.69,15.1114]
[1722292932661,12.7,184.71,184.69,15.1114]
[1722292934991,12.7,184.72,184.69,15.1114]
[1722292936757,12.7,184.71,184.69,15.1114]
[1722292937679,12.7,184.7,184.68,13.5362]
[1722292937882,12.7,184.69,184.65,13.539]
[1722292938092,12.7,184.67,184.65,13.539]
[1722292938261,12.7,184.67,184.65,18.9545]
[1722292938467,5.4143,184.7,184.64,16.1227]
[1722292938468,12.7,184.66,184.64,16.1227]
[1722292938690,12.7,184.65,184.64,16.1227]
[1722292939463,12.7,184.66,184.64,16.1227]
[1722292939664,12.7,184.65,184.63,6.3009]
[1722292939866,6.5001534,184.68,184.62,5.4165]
[1722292939867,12.7,184.64,184.62,5.4165]
[1722292940363,12.7,184.63,184.61,13.5413]
[1722292940566,12.7,184.62,184.59,27.8407]
[1722292940877,12.7,184.62,184.6,5.417]
[1722292941587,12.7,184.63,184.6,5.417]
[1722292941984,12.7,184.61,184.59,22.4236]
[1722292942377,12.7,184.62,184.59,22.4236]
[1722292942573,12.7,184.6,184.57,13.5445]
[1722292942779,12.7,184.58,184.54,21.6943]
[1722292942979,12.7,184.57,184.55,5.4185]
[1722292943286,1.0854534,184.65,184.54,21.6943]
[1722292943287,12.7,184.56,184.54,21.6943]
[1722292943490,12.7,184.56,184.54,6.4632]
[1722292943887,12.7,184.55,184.53,13.5474]
[1722292944085,5.4177,184.58,184.53,13.5474]
[1722292944086,12.7,184.54,184.53,13.5474]
[1722292944280,12.7,184.54,184.53,18.9665]
[1722292944594,12.7,184.55,184.53,18.9665]
[1722292946773,5.4175,184.59,184.53,18.9665]
[1722292946774,12.7,184.56,184.53,18.9665]
[1722292946974,5.4175,184.59,184.53,18.9665]
[1722292947172,12.7,184.56,184.53,18.9665]
[1722292948594,12.7,184.55,184.53,18.9665]
[1722292951778,12.7,184.56,184.54,5.4188]
[1722292953094,5.4165,184.63,184.53,26.2474]
[1722292953292,12.7,184.61,184.57,5.4179]
[1722292953486,12.7,184.61,184.58,5.4175]
[1722292953894,5.4163,184.63,184.57,6.50123405]
[1722292954075,12.7,184.62,184.57,1.08346328]
[1722292954279,12.7,184.62,184.57,1.08343327]